fUSD/lending_fUSD_20251225
["ID","MTS","AMOUNT","RATE_DAILY","PERIOD"]
[399731355,1766640289395,-583.37165576,0.00011813,2]
[399731356,1766640289417,-47416.8533,0.00011814,2]
[399731357,1766640289441,-2500.0,0.00011814,2]
[399731358,1766640289466,-1039.5464,0.00011814,2]
[399731359,1766640289488,-2350.0362,0.00011814,2]
[399731360,1766640289512,-9001.67989212,0.00011814,2]
[399731361,1766640289536,-151.0,0.00011907,2]
[399731362,1766640289560,-151.0,0.00011907,2]
[399731363,1766640289583,-151.0,0.00011907,2]
[399731364,1766640289606,-151.0,0.00011907,2]
[399731365,1766640289633,-151.0,0.00011907,2]
[399731366,1766640289658,-151.0,0.00011907,2]
[399731367,1766640289680,-151.0,0.00011907,2]
[399731368,1766640289708,-151.0,0.00011907,2]
[399731369,1766640289730,-151.0,0.00011907,2]
[399731370,1766640289752,-151.0,0.00011907,2]
[399731371,1766640289774,-151.0,0.00011907,2]
[399731372,1766640289796,-151.0,0.00011907,2]
[399731373,1766640289818,-151.0,0.00011907,2]
[399731374,1766640289839,-151.0,0.00011907,2]
[399731375,1766640289861,-151.0,0.00011907,2]
[399731376,1766640289883,-151.0,0.00011907,2]
[399731377,1766640289905,-151.0,0.00011907,2]
[399731378,1766640289929,-151.0,0.00011907,2]
[399731379,1766640289951,-151.0,0.00011907,2]
[399731380,1766640289972,-151.0,0.00011907,2]
[399731381,1766640289994,-300.0,0.00011912,2]
[399731382,1766640290016,-1200.0,0.00011912,2]
[399731383,1766640290037,-248.0,0.00011912,2]
[399731384,1766640290060,-628.82939374,0.00011913,2]
[399731385,1766640290082,-898.46296694,0.00011913,2]
[399731386,1766640290103,-180.32884553,0.00011913,2]
[399731387,1766640290124,-343.43717327,0.00011913,2]
[399731388,1766640290153,-5403.86963183,0.00011914,2]
[399731389,1766640293554,-50000.0,0.00011914,2]
[399731390,1766640294044,-50000.0,0.00011914,2]
[399731391,1766640320641,3482.42,7.441e-05,2]
[399731392,1766640320904,1374.77296078,7.833e-05,2]
[399731393,1766640320928,2107.64703922,7.833e-05,2]
[399731394,1766640321316,2749.54592156,8.225e-05,2]
[399731395,1766640321339,732.87407844,8.225e-05,2]
[399731396,1766640321517,3482.42,8.616e-05,2]
[399731397,1766640321783,641.89888234,9.008e-05,2]
[399731398,1766640321808,2840.52111766,9.008e-05,2]
[399731399,1766640321967,2016.67184312,9.4e-05,2]
[399731400,1766640321991,1465.74815688,9.4e-05,2]
[399731401,1766640322164,3391.4448039,9.791e-05,2]
[399731402,1766640322189,90.9751961,9.791e-05,2]
[399731403,1766640322562,3482.42,0.00010183,2]
[399731404,1766640322757,1283.79776468,0.00010574,2]
[399731405,1766640322782,2198.62223532,0.00010574,2]
[399731406,1766640337060,-671.52377087,0.00010966,2]
[399731436,1766640341988,-244.21326873,0.00010966,2]
[399731437,1766640343416,-187.76251217,0.00010966,2]
[399731438,1766640344792,-176.04083718,0.00010966,2]
[399731439,1766640349335,-373.95916282,0.00010966,2]
[399731440,1766640358132,-342.9528579,0.00010966,2]
[399731441,1766640359620,-182.34796988,0.00010966,2]
[399731442,1766640360957,2352.69960903,8e-05,2]
[399731443,1766640366422,-155.26093895,0.00010966,2]
[399731444,1766640368032,-249.12796229,0.00010966,2]
[399731445,1766640373566,-240.72728583,0.00010966,2]
[399731446,1766640376942,-178.24211257,0.00010966,2]
[399731447,1766640382343,-329.64617746,0.00010966,2]
[399731448,1766640384363,-150.61514335,0.00010966,2]
[399731449,1766640384396,-101.1948126,0.00011021,2]
[399731450,1766640431375,205.0,9.8e-05,2]
[399731451,1766640435492,100.87111643,0.000101,2]
[399731452,1766640435516,158.24850507,0.000101,2]
[399731453,1766640497555,1926.15449536,0.0001,2]
[399731454,1766640499383,390.41223249,7.888e-05,2]
[399731455,1766640509152,2382.37772786,0.0001,2]
[399731456,1766640509180,345.42936749,0.0001,2]
[399731462,1766640577435,-267.5015673,0.000107,2]
[399731463,1766640577467,-78.98930831,0.00011021,2]
[399731464,1766640577499,-300.0,0.00011189,2]
[399731465,1766640577531,-3298.508684,0.00011301,2]
[399731466,1766640577626,-2110.01088078,0.00011358,2]
[399731467,1766640577661,-1372.40911922,0.00011358,2]
[399731468,1766640577690,-183.21,0.00011525,2]
[399731469,1766640577983,-6888.77176156,0.00011525,2]
[399731470,1766640578035,-10000.01,0.00011525,2]
[399731471,1766640578051,-2505.02823844,0.00011525,2]
[399731472,1766640578061,-500.0,0.00011712,2]
[399731473,1766640578071,-385.0,0.00011748,2]
[399731474,1766640578081,-3482.42,0.00011749,2]
[399731475,1766640578091,-250.0,0.0001177,2]
[399731476,1766640578101,-300.0,0.00011812,2]
[399731477,1766640578111,-264.9740596,0.00011813,2]
[399731478,1766640578121,-173.70515845,0.00011813,2]
[399731479,1766640578131,-231.48573953,0.00011813,2]
[399731480,1766640578141,-500.0,0.00011813,2]
[399731481,1766640578151,-475.90699347,0.00011813,2]
[399731482,1766640578161,-500.0,0.00011813,2]
[399731483,1766640578171,-431.48981051,0.00011813,2]
[399731484,1766640580358,-124.4049808,0.00011813,2]
[399731485,1766640580391,-352.29594973,0.00011813,2]
[399731486,1766640580426,-555.89479131,0.00011813,2]
[399731487,1766640580508,-7934.81855632,0.00011814,2]
[399731488,1766640580523,-10000.01,0.00011814,2]
[399731489,1766640583382,-10000.01,0.00011814,2]
[399731490,1766640583506,-10000.01,0.00011814,2]
[399731491,1766640583639,-3576.97944368,0.00011814,2]
[399731492,1766640583669,-346.05111264,0.00011814,2]
[399731493,1766640583940,-2153.94888736,0.00011814,2]
[399731494,1766640583978,-198.00395991,0.00011814,2]
[399731495,1766640584009,-3841.33714596,0.00011814,2]
[399731496,1766640584040,-151.0,0.00011907,2]
[399731497,1766640584070,-151.0,0.00011907,2]
[399731498,1766640584101,-296.50040685,0.00011907,2]
[399731499,1766640584132,-151.0,0.00011907,2]
[399731500,1766640584163,-151.0,0.00011907,2]
[399731501,1766640584292,-120.32697456,0.00011907,2]
[399731502,1766640607987,302.15446449,0.000226,120]
[399731504,1766640631736,-555.89479131,0.00011813,2]
[399731505,1766640631747,-247.0,0.00011813,2]
[399731506,1766640631756,-943.38719653,0.00011814,2]
[399731509,1766640631765,-8101.51190289,0.00011814,2]
[399731512,1766640631779,-6011.25390204,0.000119,2]
[399731515,1766640631788,-300.0,0.00011906,2]
[399731517,1766640631797,-300.0,0.00011906,2]
[399731519,1766640631807,-1200.0,0.00011906,2]
[399731520,1766640631816,-300.0,0.00011906,2]
[399731521,1766640631826,-30.67302544,0.00011907,2]
[399731522,1766640631836,-151.0,0.00011907,2]
[399731523,1766640631846,-151.0,0.00011907,2]
[399731524,1766640631856,-500.0,0.00011907,2]
[399731525,1766640631865,-151.0,0.00011907,2]
[399731526,1766640631875,-500.0,0.00011907,2]
[399731527,1766640631884,-151.0,0.00011907,2]
[399731528,1766640631894,-500.0,0.00011907,2]
[399731529,1766640631903,-151.0,0.00011907,2]
[399731530,1766640631913,-500.0,0.00011907,2]
[399731531,1766640631922,-151.0,0.00011907,2]
[399731532,1766640631931,-500.0,0.00011907,2]
[399731533,1766640631941,-500.0,0.00011907,2]
[399731534,1766640631951,-151.0,0.00011907,2]
[399731535,1766640631960,-500.0,0.00011907,2]
[399731536,1766640631970,-500.0,0.00011907,2]
[399731537,1766640631979,-500.0,0.00011907,2]
[399731538,1766640631989,-151.0,0.00011907,2]
[399731539,1766640631998,-500.0,0.00011907,2]
[399731540,1766640632007,-500.0,0.00011907,2]
[399731541,1766640632017,-500.0,0.00011907,2]
[399731542,1766640632026,-500.0,0.00011907,2]
[399731543,1766640632036,-500.0,0.00011907,2]
[399731544,1766640632045,-500.0,0.00011907,2]
[399731545,1766640632055,-207.4,0.00011907,2]
[399731546,1766640632065,-500.0,0.00011907,2]
[399731547,1766640632074,-500.0,0.00011907,2]
[399731548,1766640632084,-500.0,0.00011907,2]
[399731550,1766640632093,-500.0,0.00011907,2]
[399731552,1766640632103,-500.0,0.00011907,2]
[399731555,1766640632112,-500.0,0.00011907,2]
[399731557,1766640632122,-500.0,0.00011907,2]
[399731558,1766640632132,-500.0,0.00011913,2]
[399731559,1766640632141,-158.42633911,0.00011913,2]
[399731560,1766640632151,-296.33686939,0.00011913,2]
[399731561,1766640632160,-550899.05216177,0.00011914,2]
[399731562,1766640632402,-150.99,0.00011914,2]
[399731563,1766640632415,-9999.99,0.00011914,2]
[399731564,1766640632425,-999.99,0.00011914,2]
[399731565,1766640632435,-9999.99,0.00011914,2]
[399731566,1766640632445,-5930.36961123,0.00012,2]
[399731567,1766640632455,-300.0,0.00012123,2]
[399731568,1766640632466,-250.0,0.00012123,2]
[399731569,1766640632476,-150.0,0.00012135,2]
[399731570,1766640632486,-3482.42,0.00012141,2]
[399731571,1766640632495,-8101.51190284,0.00012379,2]
[399731572,1766640632505,-3841.33714591,0.00012386,2]
[399731573,1766640632515,-3482.42,0.00012533,2]
[399731574,1766640632525,-943.38719648,0.00012541,2]
[399731575,1766640632535,-14782.8116,0.00012562,2]
[399731576,1766640632546,-1000.0,0.00012562,2]
[399731577,1766640632555,-3482.42,0.00012924,2]
[399731578,1766640632565,-8101.51190284,0.00012944,2]
[399731579,1766640632575,-3841.33714591,0.00012958,2]
[399731580,1766640632585,-250.0,0.00012994,2]
[399731581,1766640632594,-4414.32695484,0.00013,2]
[399731582,1766640632603,-5330.63924216,0.0001305,2]
[399731583,1766640632613,-420.0,0.00013071,2]
[399731584,1766640632623,-1680.0,0.00013096,2]
[399731585,1766640632633,-250.0,0.00013104,2]
[399731586,1766640632643,-699.0,0.00013246,2]
[399731587,1766640632653,-943.38719648,0.00013267,2]
[399731588,1766640632662,-3482.42,0.00013316,2]
[399731589,1766640632672,-8101.51190284,0.00013509,2]
[399731590,1766640632682,-3841.33714591,0.00013529,2]
[399731591,1766640632691,-500.0,0.00013698,2]
[399731592,1766640632701,-500.0,0.00013698,2]
[399731593,1766640632710,-500.0,0.00013698,2]
[399731594,1766640632719,-500.0,0.00013698,2]
[399731595,1766640632729,-500.0,0.00013698,2]
[399731596,1766640632739,-500.0,0.00013698,2]
[399731597,1766640632749,-1000.0,0.00013699,2]
[399731598,1766640632758,-3482.42,0.00013708,2]
[399731599,1766640632768,-130738.58821123,0.0001399,2]
[399731600,1766640632787,-943.38719648,0.00013994,2]
[399731601,1766640632796,-194.59845631,0.00013999,2]
[399731602,1766640632805,-3482.42,0.00014099,2]
[399731603,1766640632815,-3841.33714591,0.00014101,2]
[399731604,1766640632827,-425.0,0.0001435,2]
[399731605,1766640632837,-150.99,0.00014358,2]
[399731606,1766640632846,-299.99,0.00014358,2]
[399731607,1766640632856,-10282.93147683,0.0001439,2]
[399731608,1766640632866,-2351.0,0.00014406,2]
[399731609,1766640632876,-3482.42,0.00014491,2]
[399731610,1766640632885,-268.5,0.00014497,2]
[399731611,1766640632895,-215.6315306,0.00014646,2]
[399731612,1766640632905,-3841.33714591,0.00014673,2]
[399731613,1766640632914,-151.0,0.00014698,2]
[399731614,1766640632923,-943.38719648,0.0001472,2]
[399731615,1766640632933,-151.0,0.00014721,2]
[399731616,1766640632943,-151.0,0.00014753,2]
[399731617,1766640632952,-3482.42,0.00014883,2]
[399731618,1766640632962,-235.22772183,0.00014915,2]
[399731619,1766640632973,-150.0,0.00014923,2]
[399731620,1766640632983,-190.0,0.00015,2]
[399731621,1766640632992,-1564.91483408,0.00015,14]
[399731622,1766640633003,-3841.33714591,0.00015245,2]
[399731623,1766640633012,-194.59845631,0.000154,2]
[399731624,1766640633022,-943.38719648,0.00015447,2]
[399731625,1766640633032,-3841.33714591,0.00015816,2]
[399731626,1766640633043,-751.0,0.00015846,2]
[399731627,1766640633063,-717.59871608,0.000159,2]
[399731628,1766640633073,-6775.69878296,0.00016,2]
[399731629,1766640633083,-37711.49496451,0.00016,2]
[399731630,1766640633095,-1171.15387376,0.00016,2]
[399731631,1766640633570,-19.07198869,0.00016,2]
[399731632,1766640633582,-434.30423461,0.00016,2]
[399731633,1766640633594,-1707.54897056,0.00016,2]
[399731634,1766640633609,-699.81095237,0.00016,2]
[399731635,1766640633621,-731.71018286,0.00016,2]
[399731636,1766640633632,-544.02,0.00016,2]
[399731637,1766640633643,-437.436765,0.00016,2]
[399731638,1766640633658,-467.98256074,0.00016,2]
[399731639,1766640633669,-260.99999986,0.00016,2]
[399731640,1766640633680,-4833.3439008,0.00016,2]
[399731641,1766640633691,-559.2491887,0.00016,2]
[399731645,1766640637938,-8101.51190284,0.00014074,2]
[399731646,1766640637948,-6860.93938143,0.00016,2]
[399731647,1766640638105,-159138.82907059,0.00016,2]
[399731648,1766640638115,-611.79223266,0.00016,2]
[399731649,1766640638125,-186251.71012597,0.00016,4]
[399731650,1766640638135,-150.0,0.00016023,2]
[399731651,1766640638146,-500.0,0.00016023,2]
[399731652,1766640638156,-150.0,0.00016023,2]
[399731653,1766640638165,-183.77130644,0.00016023,2]
[399731654,1766640638175,-150.0,0.00016023,2]
[399731655,1766640638185,-500.0,0.00016023,2]
[399731656,1766640638195,-500.0,0.00016023,2]
[399731657,1766640638205,-500.0,0.00016023,2]
[399731658,1766640638216,-500.0,0.00016023,2]
[399731660,1766640638226,-500.0,0.00016023,2]
[399731662,1766640638236,-150.0,0.00016023,2]
[399731664,1766640638246,-150.0,0.0001605,2]
[399731666,1766640638255,-500.0,0.0001605,2]
[399731668,1766640638266,-150.0,0.0001605,2]
[399731670,1766640638279,-150.0,0.0001605,2]
[399731671,1766640638289,-500.0,0.0001605,2]
[399731673,1766640638299,-500.0,0.0001605,2]
[399731675,1766640638309,-500.0,0.0001605,2]
[399731677,1766640638319,-500.0,0.0001605,2]
[399731679,1766640638329,-500.0,0.0001605,2]
[399731681,1766640638339,-717.59871606,0.00016077,2]
[399731683,1766640638349,-150.0,0.00016078,2]
[399731685,1766640638359,-500.0,0.00016078,2]
[399731687,1766640638369,-200.0,0.00016078,2]
[399731688,1766640638379,-150.0,0.00016078,2]
[399731689,1766640638389,-428.0,0.00016078,2]
[399731690,1766640638399,-500.0,0.00016078,2]
[399731691,1766640638410,-350.0,0.00016078,2]
[399731692,1766640638425,-336.02366734,0.00016078,2]
[399731693,1766640638436,-174.0,0.00016078,2]
[399731694,1766640638446,-153.27687063,0.00016105,2]
[399731695,1766640638456,-500.0,0.00016105,2]
[399731696,1766640638466,-174.82250522,0.00016105,2]
[399731697,1766640638476,-578.96689898,0.00016105,2]
[399731698,1766640638487,-5528.98,0.00016116,2]
[399731699,1766640638497,-402.48179652,0.00016133,2]
[399731700,1766640638507,-943.38719648,0.00016173,2]
[399731701,1766640638517,-5000.00898991,0.000162,5]
[399731702,1766640638526,-717.59871606,0.00016253,2]
[399731703,1766640638536,-500.0,0.00016309,2]
[399731704,1766640638546,-500.0,0.00016336,2]
[399731705,1766640638556,-500.0,0.00016364,2]
[399731706,1766640638566,-1852.42,0.00016381,2]
[399731707,1766640638576,-3841.33714591,0.00016388,2]
[399731708,1766640638586,-500.0,0.00016391,2]
[399731709,1766640638596,-500.0,0.00016419,2]
[399731710,1766640638606,-717.59871606,0.0001643,2]
[399731711,1766640638615,-500.0,0.00016438,2]
[399731712,1766640638625,-462.90677308,0.00016438,2]
[399731713,1766640638635,-500.0,0.00016438,2]
[399731714,1766640638644,-500.0,0.00016438,2]
[399731715,1766640638654,-600.0,0.00016438,2]
[399731716,1766640638664,-500.0,0.00016446,2]
[399731717,1766640638674,-171.41662455,0.00016473,2]
[399731718,1766640638684,-358.86034089,0.000166,2]
[399731719,1766640638693,-717.59871606,0.00016607,2]
[399731720,1766640638703,-717.59871606,0.00016783,2]
[399731721,1766640638712,-194.59845631,0.000168,2]
[399731722,1766640638722,-470.44457228,0.000169,2]
[399731723,1766640638732,-182.35143652,0.000169,2]
[399731724,1766640638741,-1243.4106652,0.000169,2]
[399731725,1766640638751,-223.45632631,0.000169,2]
[399731726,1766640638761,-943.38719648,0.000169,2]
[399731727,1766640638771,-717.59871606,0.0001696,2]
[399731728,1766640638790,-3841.33714591,0.0001696,2]
[399731729,1766640638800,-500.0,0.00016973,2]
[399731730,1766640638810,-466.57897047,0.00016973,2]
[399731731,1766640638822,-500.0,0.00016973,2]
[399731732,1766640638831,-437.14765558,0.00016973,2]
[399731733,1766640638841,-500.0,0.00016973,2]
[399731734,1766640638854,-600.0,0.00016986,2]
[399731735,1766640638865,-300.0,0.00016999,2]
[399731736,1766640638876,-300.0,0.00016999,2]
[399731737,1766640638888,-250.0,0.00017,2]
[399731738,1766640638898,-4901128.80944392,0.00017,2]
[399731739,1766640638913,-534.67940168,0.00017,2]
[399731740,1766640638927,-348.53804492,0.00017,2]
[399731743,1766640640020,-2101.26060921,0.00011714,2]
[399731744,1766640640078,-612.4781407,0.00011714,2]
[399731745,1766640640137,-597.04640124,0.00011714,2]
[399731746,1766640640149,-2110.08564558,0.00011714,2]
[399731747,1766640640195,-1726.00720309,0.00011714,2]
[399731748,1766640640207,-4119.45280101,0.00011714,2]
[399731749,1766640640219,-988733.66919917,0.00011714,2]
[399731750,1766640640229,-8101.51190284,0.0001464,2]
[399731751,1766640640239,-291.90393285,0.00015916,2]
[399731752,1766640640248,-6757743.99143017,0.00017,2]
[399731776,1766640645905,-1181.39263457,0.00015205,2]
[399731777,1766640646068,-500.0,0.00013698,2]
[399731779,1766640646371,-4189.71639084,0.00015205,2]
[399731782,1766640882609,-500.0,0.00011703,2]
[399731783,1766640882647,-500.0,0.00011703,2]
[399731784,1766640882678,-500.0,0.00011703,2]
[399731785,1766640882714,-350.82434289,0.00011703,2]
[399731786,1766640882745,-500.0,0.00011703,2]
[399731787,1766640882781,-500.0,0.00011703,2]
[399731788,1766640882812,-300.0,0.00011703,2]
[399731789,1766640882993,-3698.36131422,0.00011704,2]
[399731790,1766640883029,-10000.01,0.00011704,2]
[399731791,1766640883054,-10000.01,0.00011704,2]
[399731792,1766640883091,-10000.01,0.00011704,2]
[399731793,1766640883223,-10000.01,0.00011704,2]
[399731794,1766640883335,-1992.14171263,0.00011704,2]
[399731795,1766640883367,-206.83447757,0.00011713,2]
[399731796,1766640883399,-500.0,0.00011713,2]
[399731797,1766640883433,-209.83607413,0.00011713,2]
[399731798,1766640883688,-439.90975868,0.00011713,2]
[399731799,1766640883719,-1200.0,0.00011713,2]
[399731800,1766640883905,-902.56595398,0.00011714,2]
[399731801,1766640883929,-10000.01,0.00011714,2]
[399731802,1766640883945,-10000.01,0.00011714,2]
[399731803,1766640883965,-10000.01,0.00011714,2]
[399731804,1766640888673,-10000.01,0.00011714,2]
[399731805,1766640891683,-10000.01,0.00011714,2]
[399731806,1766640891794,-10000.01,0.00011714,2]
[399731807,1766640891905,-10000.01,0.00011714,2]
[399731808,1766640892006,-10000.01,0.00011714,2]
[399731809,1766640892121,-10000.01,0.00011714,2]
[399731810,1766640892245,-10000.01,0.00011714,2]
[399731811,1766640892373,-10000.01,0.00011714,2]
[399731812,1766640892487,-10000.01,0.00011714,2]
[399731813,1766640903877,-500.0,0.00011703,2]
[399731814,1766640903915,-500.0,0.00011703,2]
[399731815,1766640903958,-500.0,0.00011703,2]
[399731816,1766640904000,-151.00753019,0.00011703,2]
[399731817,1766640904037,-300.0,0.00011713,2]
[399731818,1766640904070,-1200.0,0.00011713,2]
[399731819,1766640904214,-3697.99493962,0.00011714,2]
[399731820,1766640906878,-300.0,0.00011708,2]
[399731821,1766640906923,-9400.01,0.00011714,2]
[399731822,1766640909846,-10000.01,0.00011714,2]
[399731823,1766640910010,-10000.01,0.00011714,2]
[399731824,1766640910155,-10000.01,0.00011714,2]
[399731825,1766640910255,-10000.01,0.00011714,2]
[399731826,1766640910383,-10000.01,0.00011714,2]
[399731827,1766640910490,-10000.01,0.00011714,2]
[399731828,1766640910621,-10000.01,0.00011714,2]
[399731829,1766640925067,-10000.01,0.00011714,2]
[399731830,1766640925183,-10000.01,0.00011714,2]
[399731831,1766640927985,-10000.01,0.00011714,2]
[399731832,1766640928249,-10000.01,0.00011714,2]
[399731833,1766640928443,-10000.01,0.00011714,2]
[399731834,1766640928567,-10000.01,0.00011714,2]
[399731835,1766640928700,-10000.01,0.00011714,2]
[399731836,1766640928825,-10000.01,0.00011714,2]
[399731837,1766640937093,-10000.01,0.00011614,2]
[399731838,1766640944225,-10000.01,0.00011614,2]
[399731839,1766640953990,-769.79160068,0.00020793,30]
[399731840,1766641206951,-244.0,0.00011466,2]
[399731841,1766641206978,-143.52475697,0.00011466,2]
[399731842,1766641313653,-62.22524303,0.00011466,2]
[399731843,1766641313676,-138.68150828,0.00011511,2]
[399731844,1766641317129,-658.15154528,0.00011511,2]
[399731845,1766641318685,-364.46315353,0.00011511,2]
[399731846,1766641318725,-95.1595228,0.00011513,2]
[399731847,1766641321976,-177.89287093,0.00011513,2]
[399731848,1766641324584,-467.83926703,0.00011513,2]
[399731849,1766641342059,-424.23855293,0.00011339,2]
[399731850,1766641343727,-75.76144707,0.00011339,2]
[399731851,1766641343759,-500.0,0.00011339,2]
[399731852,1766641343791,-500.0,0.00011339,2]
[399731853,1766641343822,-150.0,0.00011339,2]
[399731854,1766641343853,-500.0,0.00011339,2]
[399731855,1766641343884,-500.0,0.00011366,2]
[399731856,1766641343914,-500.0,0.00011366,2]
[399731857,1766641343946,-500.0,0.00011366,2]
[399731858,1766641343977,-500.0,0.00011366,2]
[399731859,1766641344008,-500.0,0.00011394,2]
[399731860,1766641344039,-350.0,0.00011394,2]
[399731861,1766641344071,-174.0,0.00011394,2]
[399731862,1766641344103,-164.46343852,0.00011394,2]
[399731863,1766641344259,-171.56022882,0.00011394,2]
[399731864,1766641344283,-125.69977118,0.00011421,2]
[399731865,1766641344400,-171.56022882,0.00011421,2]
[399731866,1766641346606,-281.70689898,0.00011421,2]
[399731867,1766641346637,-420.40454632,0.00011513,2]
[399731868,1766641346667,-300.0,0.00011513,2]
[399731869,1766641346698,-250.0,0.00011513,2]
[399731870,1766641346728,-1161.29620708,0.00011514,2]
[399731871,1766641346759,-162.74,0.00011541,2]
[399731872,1766641346789,-250.0,0.00011558,2]
[399731873,1766641346819,-300.0,0.0001161,2]
[399731874,1766641346848,-150.0,0.0001161,2]
[399731875,1766641346877,-500.0,0.00011611,2]
[399731876,1766641346907,-300.0,0.00011611,2]
[399731877,1766641346937,-647.71469524,0.00011611,2]
[399731878,1766641347145,-552.28530476,0.00011611,2]
[399731879,1766641353449,-216.93253067,0.0001161,2]
[399731880,1766641353480,-200.5323999,0.0001161,2]
[399731881,1766641353516,-500.0,0.0001161,2]
[399731882,1766641353547,-500.0,0.0001161,2]
[399731883,1766641353577,-500.0,0.0001161,2]
[399731884,1766641353613,-500.0,0.0001161,2]
[399731885,1766641353643,-500.0,0.0001161,2]
[399731886,1766641353673,-500.0,0.0001161,2]
[399731887,1766641353709,-500.0,0.0001161,2]
[399731888,1766641353746,-500.0,0.0001161,2]
[399731889,1766641353777,-162.75370381,0.0001161,2]
[399731890,1766641354732,-158.69026474,0.0001161,2]
[399731891,1766641354742,-500.0,0.0001161,2]
[399731892,1766641354752,-180.8824665,0.0001161,2]
[399731893,1766641402527,-288.90533939,0.00011433,2]
[399731894,1766641405719,-211.09466061,0.00011433,2]
[399731895,1766641405743,-150.0,0.00011433,2]
[399731896,1766641405767,-131.34108858,0.00011433,2]
[399731897,1766641407773,-52.43021786,0.00011433,2]
[399731898,1766641407798,-150.0,0.00011433,2]
[399731899,1766641407822,-18.02636926,0.00011433,2]
[399731900,1766641409807,-160.79287812,0.00011433,2]
[399731901,1766641412420,-169.30485527,0.00011433,2]
[399731902,1766641413915,-151.87589735,0.00011433,2]
[399731903,1766641413938,-95.03604909,0.00011433,2]
[399731904,1766641416014,-54.96395091,0.00011433,2]
[399731905,1766641416039,-307.84432286,0.0001146,2]
[399731906,1766641418525,-192.15567714,0.0001146,2]
[399731907,1766641418549,-42.53207322,0.0001146,2]
[399731908,1766641420787,-107.46792678,0.0001146,2]
[399731909,1766641420810,-97.25397898,0.0001146,2]
[399731910,1766641422314,-52.74602102,0.0001146,2]
[399731911,1766641422339,-183.55809121,0.0001146,2]
[399731912,1766641424490,-277.73185187,0.00011072,2]
[399731913,1766641426615,-258.817403,0.00011072,2]
[399731922,1766641429497,-441.87068705,0.00011072,2]
[399731923,1766641433738,-300.0,0.00011021,2]
[399731924,1766641435037,-700.0,0.00011021,2]
[399731925,1766641435068,-3251.47005808,0.00011072,2]
[399731926,1766641435099,-316.44190879,0.0001146,2]
[399731927,1766641435129,-150.0,0.0001146,2]
[399731928,1766641435159,-500.0,0.00011488,2]
[399731929,1766641435476,-164.18606626,0.00011488,2]
[399731930,1766641438933,-35.81393374,0.00011488,2]
[399731931,1766641438967,-500.0,0.00011488,2]
[399731932,1766641438999,-150.0,0.00011488,2]
[399731933,1766641439031,-200.0,0.00011488,2]
[399731934,1766641439061,-883.0968,0.00011514,2]
[399731935,1766641439093,-2449.8674,0.00011514,2]
[399731936,1766641439125,-500.0,0.00011515,2]
[399731937,1766641439159,-219.49880842,0.00011515,2]
[399731938,1766641439334,-123.45611568,0.00011515,2]
[399731939,1766641444971,-616.8985,0.00011514,2]
[399731940,1766641445006,-51.36638954,0.00011515,2]
[399731941,1766641445040,-500.0,0.00011543,2]
[399731942,1766641445074,-402.48179652,0.0001157,2]
[399731943,1766641445112,-1200.0,0.00011609,2]
[399731944,1766641445144,-300.0,0.0001161,2]
[399731945,1766641445177,-250.0,0.0001161,2]
[399731946,1766641445219,-319.1175335,0.0001161,2]
[399731947,1766641445258,-500.0,0.0001161,2]
[399731948,1766641445292,-500.0,0.0001161,2]
[399731949,1766641445335,-220.28156088,0.0001161,2]
[399731950,1766641445849,-279.71843912,0.0001161,2]
[399731951,1766641448181,-500.0,0.0001161,2]
[399731952,1766641448219,-500.0,0.0001161,2]
[399731953,1766641448256,-500.0,0.0001161,2]
[399731954,1766641448292,-500.0,0.0001161,2]
[399731955,1766641448327,-500.0,0.0001161,2]